fUST/lending_fUST_20240515
["ID","MTS","AMOUNT","RATE_DAILY","PERIOD"]
[327056447,1715757041359,-360.912542,0.00024739,2]
[327056448,1715757041368,-360.912542,0.00024739,2]
[327056449,1715757041379,-151.0,0.00024739,2]
[327056450,1715757041389,-221.365096,0.00024739,2]
[327056451,1715757041401,-247.963608,0.00024739,2]
[327056452,1715757041412,-247.963608,0.00024739,2]
[327056453,1715757041422,-642.26,0.00024744,3]
[327056454,1715757041433,-214.08,0.00024746,3]
[327056455,1715757041442,-428.16,0.00024753,3]
[327056456,1715757041451,-500.0,0.00024753,2]
[327056457,1715757041460,-500.0,0.00024753,2]
[327056458,1715757041469,-594.40488837,0.00024753,2]
[327056459,1715757041478,-500.0,0.00024753,2]
[327056460,1715757041488,-500.0,0.00024753,2]
[327056461,1715757041497,-500.0,0.00024753,2]
[327056462,1715757041506,-500.0,0.00024753,2]
[327056463,1715757041515,-494.03874187,0.00024753,2]
[327056464,1715757041524,-500.0,0.00024753,2]
[327056465,1715757041534,-500.0,0.00024753,2]
[327056466,1715757041543,-500.0,0.00024753,2]
[327056467,1715757041552,-500.0,0.00024753,2]
[327056468,1715757041561,-342.76319342,0.00024753,2]
[327056469,1715757041570,-500.0,0.00024753,2]
[327056470,1715757041579,-500.0,0.00024753,2]
[327056471,1715757041589,-500.0,0.00024753,2]
[327056472,1715757041598,-500.0,0.00024753,2]
[327056473,1715757041608,-500.0,0.00024753,2]
[327056474,1715757041620,-500.0,0.00024753,2]
[327056475,1715757041630,-500.0,0.00024753,2]
[327056476,1715757041639,-500.0,0.00024753,2]
[327056477,1715757041648,-497.249755,0.00024755,2]
[327056478,1715757041659,-497.249755,0.00024755,2]
[327056479,1715757041670,-497.249755,0.00024756,2]
[327056480,1715757041680,-497.249755,0.00024756,2]
[327056481,1715757041702,-497.249755,0.00024757,2]
[327056482,1715757041719,-497.249755,0.00024757,2]
[327056483,1715757041733,-493.34280296,0.00024762,2]
[327056484,1715757041749,-500.0,0.00024762,2]
[327056485,1715757041765,-500.0,0.00024762,2]
[327056486,1715757041782,-500.0,0.00024762,2]
[327056487,1715757041798,-183.35984746,0.00024762,2]
[327056488,1715757041813,-500.0,0.00024762,2]
[327056489,1715757041829,-545.55216621,0.00024762,2]
[327056490,1715757041845,-500.0,0.00024762,2]
[327056491,1715757041856,-500.0,0.00024762,2]
[327056492,1715757041872,-627.3626,0.00024762,2]
[327056493,1715757041888,-500.0,0.00024762,2]
[327056494,1715757041904,-500.0,0.00024762,2]
[327056495,1715757041920,-500.0,0.00024762,2]
[327056496,1715757041934,-500.0,0.00024762,2]
[327056497,1715757041945,-500.0,0.00024762,2]
[327056498,1715757041960,-500.0,0.00024762,2]
[327056499,1715757041974,-189.52180312,0.00024762,2]
[327056500,1715757041988,-500.0,0.00024762,2]
[327056501,1715757042003,-504.16389142,0.00024762,2]
[327056502,1715757042015,-500.0,0.00024762,2]
[327056503,1715757042029,-500.0,0.00024762,2]
[327056504,1715757042041,-500.0,0.00024762,2]
[327056505,1715757042056,-500.0,0.00024762,2]
[327056506,1715757042068,-500.0,0.00024762,2]
[327056507,1715757042081,-500.0,0.00024762,2]
[327056508,1715757042093,-500.0,0.00024762,2]
[327056509,1715757042106,-500.0,0.00024762,2]
[327056510,1715757042118,-500.0,0.00024762,2]
[327056511,1715757042131,-500.0,0.00024762,2]
[327056512,1715757042145,-500.0,0.00024762,2]
[327056513,1715757042158,-500.0,0.00024762,2]
[327056514,1715757042171,-500.0,0.00024762,2]
[327056515,1715757042183,-500.0,0.00024762,2]
[327056516,1715757042196,-247.963608,0.00024763,2]
[327056517,1715757042211,-247.963608,0.00024763,2]
[327056518,1715757042224,-247.963608,0.00024763,2]
[327056519,1715757042237,-247.963608,0.00024763,2]
[327056520,1715757042250,-151.0,0.00024763,2]
[327056521,1715757042263,-151.0,0.00024763,2]
[327056522,1715757042275,-850.562716,0.00024763,2]
[327056523,1715757042288,-850.562716,0.00024763,2]
[327056524,1715757042301,-151.0,0.00024763,2]
[327056525,1715757042313,-151.0,0.00024763,2]
[327056526,1715757042326,-850.562716,0.00024763,2]
[327056527,1715757042338,-850.562716,0.00024763,2]
[327056528,1715757042351,-151.0,0.00024763,2]
[327056529,1715757042364,-151.0,0.00024763,2]
[327056530,1715757042379,-151.0,0.00024763,2]
[327056531,1715757042391,-151.0,0.00024763,2]
[327056532,1715757042405,-151.0,0.00024763,2]
[327056533,1715757042418,-151.0,0.00024764,2]
[327056534,1715757042432,-850.562716,0.00024764,2]
[327056535,1715757042445,-151.0,0.00024764,2]
[327056536,1715757042460,-850.562716,0.00024764,2]
[327056537,1715757042472,-151.0,0.00024764,2]
[327056538,1715757042484,-244.126605,0.00024764,2]
[327056539,1715757042497,-497.249755,0.00024764,2]
[327056540,1715757042510,-497.249755,0.00024764,2]
[327056541,1715757042522,-247.963608,0.00024765,2]
[327056542,1715757042536,-247.963608,0.00024765,2]
[327056543,1715757042550,-247.963608,0.00024765,2]
[327056544,1715757042564,-247.963608,0.00024765,2]
[327056545,1715757042577,-151.0,0.00024765,2]
[327056546,1715757042589,-151.0,0.00024765,2]
[327056547,1715757042602,-850.562716,0.00024765,2]
[327056548,1715757042616,-850.562716,0.00024765,2]
[327056549,1715757042632,-167.9934,0.00024765,2]
[327056550,1715757042646,-850.562716,0.00024765,2]
[327056551,1715757042659,-850.562716,0.00024765,2]
[327056552,1715757042674,-151.0,0.00024765,2]
[327056553,1715757042687,-151.0,0.00024765,2]
[327056554,1715757042701,-497.249755,0.00024765,2]
[327056555,1715757042713,-497.249755,0.00024765,2]
[327056556,1715757042726,-376.461438,0.00024767,2]
[327056557,1715757042739,-376.461438,0.00024767,2]
[327056558,1715757042752,-376.461438,0.00024767,2]
[327056559,1715757042765,-376.461438,0.00024767,2]
[327056560,1715757042779,-376.461438,0.00024767,2]
[327056561,1715757042791,-376.461438,0.00024767,2]
[327056562,1715757042805,-151.0,0.00024767,2]
[327056563,1715757042818,-169.515771,0.00024767,2]
[327056564,1715757042828,-360.912542,0.00024767,2]
[327056565,1715757042838,-360.912542,0.00024767,2]
[327056566,1715757042848,-360.912542,0.00024767,2]
[327056567,1715757042858,-360.912542,0.00024767,2]
[327056568,1715757042868,-360.912542,0.00024767,2]
[327056569,1715757042877,-360.912542,0.00024767,2]
[327056570,1715757042887,-151.0,0.00024767,2]
[327056571,1715757043114,-151.0,0.00024767,2]
[327056572,1715757043129,-151.0,0.00024767,2]
[327056573,1715757043139,-151.0,0.00024767,2]
[327056574,1715757043150,-151.0,0.00024767,2]
[327056575,1715757043160,-251.331927,0.00024767,2]
[327056576,1715757043170,-151.0,0.00024767,2]
[327056577,1715757043180,-623.172642,0.00024767,2]
[327056579,1715757043190,-623.172642,0.00024767,2]
[327056580,1715757043199,-151.0,0.00024767,2]
[327056581,1715757043209,-151.0,0.00024767,2]
[327056582,1715757043218,-497.431148,0.00024767,2]
[327056583,1715757043227,-497.431148,0.00024767,2]
[327056584,1715757043238,-247.963608,0.00024767,2]
[327056585,1715757043247,-151.0,0.00024767,2]
[327056586,1715757043257,-247.963608,0.00024767,2]
[327056587,1715757043266,-636.285914,0.00024767,2]
[327056588,1715757043277,-636.285914,0.00024767,2]
[327056589,1715757043286,-151.0,0.00024767,2]
[327056591,1715757043296,-151.0,0.00024767,2]
[327056592,1715757043305,-850.562716,0.00024767,2]
[327056593,1715757043315,-850.562716,0.00024767,2]
[327056594,1715757043326,-850.562716,0.00024767,2]
[327056595,1715757043336,-850.562716,0.00024767,2]
[327056598,1715757043345,-151.0,0.00024767,2]
[327056600,1715757043356,-151.0,0.00024767,2]
[327056602,1715757043366,-497.249755,0.00024767,2]
[327056603,1715757043375,-497.249755,0.00024767,2]
[327056605,1715757043386,-497.249755,0.00024767,2]
[327056607,1715757043395,-497.249755,0.00024767,2]
[327056608,1715757043404,-376.461438,0.00024774,2]
[327056609,1715757043414,-376.461438,0.00024774,2]
[327056610,1715757043423,-376.461438,0.00024774,2]
[327056611,1715757043432,-376.461438,0.00024774,2]
[327056612,1715757043441,-360.912542,0.00024774,2]
[327056613,1715757043451,-360.912542,0.00024774,2]
[327056614,1715757043460,-360.912542,0.00024774,2]
[327056615,1715757043469,-360.912542,0.00024774,2]
[327056616,1715757043478,-151.0,0.00024774,2]
[327056617,1715757043487,-151.0,0.00024774,2]
[327056618,1715757043497,-151.0,0.00024774,2]
[327056619,1715757043507,-278.696478,0.00024774,2]
[327056620,1715757043517,-151.0,0.00024774,2]
[327056621,1715757043527,-151.0,0.00024774,2]
[327056622,1715757043537,-623.172642,0.00024774,2]
[327056623,1715757043546,-623.172642,0.00024774,2]
[327056624,1715757043555,-623.172642,0.00024774,2]
[327056626,1715757043564,-623.172642,0.00024774,2]
[327056628,1715757043575,-151.0,0.00024774,2]
[327056630,1715757043584,-151.0,0.00024774,2]
[327056632,1715757043593,-152.002366,0.00024774,2]
[327056634,1715757043604,-497.431148,0.00024774,2]
[327056635,1715757043614,-497.431148,0.00024774,2]
[327056637,1715757043627,-497.431148,0.00024774,2]
[327056638,1715757043636,-497.431148,0.00024774,2]
[327056639,1715757043645,-151.0,0.00024774,2]
[327056640,1715757043655,-151.0,0.00024774,2]
[327056641,1715757043666,-636.285914,0.00024774,2]
[327056642,1715757043675,-636.285914,0.00024774,2]
[327056643,1715757043685,-636.285914,0.00024774,2]
[327056644,1715757043695,-636.285914,0.00024774,2]
[327056645,1715757043706,-151.0,0.00024774,2]
[327056646,1715757043715,-151.0,0.00024774,2]
[327056647,1715757043725,-850.562716,0.00024774,2]
[327056648,1715757043734,-850.562716,0.00024774,2]
[327056649,1715757043744,-850.562716,0.00024774,2]
[327056650,1715757043753,-850.56272,0.00024774,2]
[327056651,1715757043763,-151.0,0.00024774,2]
[327056652,1715757043772,-151.0,0.00024774,2]
[327056653,1715757043782,-497.249755,0.00024774,2]
[327056654,1715757043792,-497.249751,0.00024774,2]
[327056655,1715757043801,-500.0,0.00024774,2]
[327056656,1715757043811,-500.0,0.00024774,2]
[327056657,1715757043821,-151.0,0.00024775,2]
[327056658,1715757043831,-151.0,0.00024775,2]
[327056659,1715757043840,-151.0,0.00024775,2]
[327056660,1715757043850,-151.018611,0.00024775,2]
[327056661,1715757043860,-176.482529,0.00024775,2]
[327056662,1715757043869,-176.482529,0.00024775,2]
[327056663,1715757043879,-176.482529,0.00024775,2]
[327056664,1715757043888,-176.482529,0.00024775,2]
[327056665,1715757043898,-176.482529,0.00024775,2]
[327056666,1715757043907,-176.482529,0.00024775,2]
[327056667,1715757043916,-176.482529,0.00024775,2]
[327056668,1715757043925,-176.482529,0.00024775,2]
[327056669,1715757043935,-151.0,0.00024775,2]
[327056670,1715757043944,-288.48448,0.00024775,2]
[327056671,1715757043954,-376.461438,0.00024775,2]
[327056673,1715757043963,-376.461438,0.00024775,2]
[327056674,1715757043972,-376.461438,0.00024775,2]
[327056675,1715757043982,-376.461438,0.00024775,2]
[327056676,1715757043991,-360.912542,0.00024775,2]
[327056677,1715757044000,-360.912542,0.00024775,2]
[327056678,1715757044009,-360.912542,0.00024775,2]
[327056679,1715757044018,-360.912542,0.00024775,2]
[327056680,1715757044027,-151.0,0.00024775,2]
[327056681,1715757044037,-151.0,0.00024775,2]
[327056682,1715757044046,-151.0,0.00024775,2]
[327056683,1715757044055,-623.172642,0.00024775,2]
[327056684,1715757044064,-623.172642,0.00024775,2]
[327056685,1715757044073,-248.044171,0.00024775,2]
[327056686,1715757044083,-497.431148,0.00024775,2]
[327056687,1715757044092,-497.431148,0.00024775,2]
[327056688,1715757044102,-247.963608,0.00024775,2]
[327056689,1715757044111,-247.963608,0.00024775,2]
[327056690,1715757044120,-247.963608,0.00024775,2]
[327056691,1715757044131,-247.963608,0.00024775,2]
[327056692,1715757044140,-247.963608,0.00024775,2]
[327056693,1715757044150,-151.0,0.00024775,2]
[327056694,1715757044160,-247.963608,0.00024775,2]
[327056695,1715757044169,-247.963608,0.00024775,2]
[327056696,1715757044178,-247.9636,0.00024775,2]
[327056697,1715757044188,-636.285914,0.00024775,2]
[327056698,1715757044197,-636.285914,0.00024775,2]
[327056699,1715757044207,-151.0,0.00024776,2]
[327056700,1715757044217,-151.0,0.00024776,2]
[327056701,1715757044227,-151.0,0.00024776,2]
[327056702,1715757044236,-176.482529,0.00024776,2]
[327056703,1715757044246,-176.482529,0.00024776,2]
[327056704,1715757044255,-151.0,0.00024776,2]
[327056705,1715757044265,-623.172642,0.00024776,2]
[327056706,1715757044274,-623.172642,0.00024776,2]
[327056707,1715757044283,-497.431148,0.00024776,2]
[327056708,1715757044293,-497.431148,0.00024776,2]
[327056709,1715757044303,-636.285914,0.00024776,2]
[327056710,1715757044312,-636.285914,0.00024776,2]
[327056711,1715757044322,-151.0,0.00024777,2]
[327056712,1715757044331,-151.0,0.00024777,2]
[327056713,1715757044341,-151.0,0.00024777,2]
[327056714,1715757044350,-151.0,0.00024777,2]
[327056715,1715757044360,-151.0,0.00024777,2]
[327056716,1715757044369,-151.0,0.00024777,2]
[327056717,1715757044379,-151.0,0.00024777,2]
[327056718,1715757044389,-176.482529,0.00024777,2]
[327056719,1715757044399,-176.482529,0.00024777,2]
[327056720,1715757044408,-376.461438,0.00024777,2]
[327056721,1715757044418,-376.461438,0.00024777,2]
[327056722,1715757044427,-376.461438,0.00024777,2]
[327056723,1715757044436,-376.461434,0.00024777,2]
[327056724,1715757044446,-360.912542,0.00024777,2]
[327056725,1715757044456,-360.912542,0.00024777,2]
[327056726,1715757044466,-360.912542,0.00024777,2]
[327056727,1715757044476,-360.912542,0.00024777,2]
[327056728,1715757044486,-151.0,0.00024777,2]
[327056729,1715757044495,-151.0,0.00024777,2]
[327056730,1715757044504,-151.0,0.00024777,2]
[327056731,1715757044513,-151.0,0.00024777,2]
[327056732,1715757044523,-623.172642,0.00024777,2]
[327056733,1715757044533,-623.172642,0.00024777,2]
[327056734,1715757044542,-623.172642,0.00024777,2]
[327056735,1715757044552,-623.172642,0.00024777,2]
[327056736,1715757044561,-497.431148,0.00024777,2]
[327056737,1715757044571,-497.431148,0.00024777,2]
[327056738,1715757044582,-497.431148,0.00024777,2]
[327056739,1715757044591,-497.431148,0.00024777,2]
[327056740,1715757044600,-636.285914,0.00024777,2]
[327056741,1715757044610,-636.285914,0.00024777,2]
[327056742,1715757044623,-636.285914,0.00024777,2]
[327056743,1715757044633,-636.285914,0.00024777,2]
[327056744,1715757044642,-283.885906,0.00024778,2]
[327056745,1715757044652,-151.0,0.00024778,2]
[327056746,1715757044661,-151.0,0.00024778,2]
[327056747,1715757044671,-151.0,0.00024778,2]
[327056748,1715757044680,-506.343063,0.00024778,2]
[327056749,1715757044690,-506.343063,0.00024778,2]
[327056750,1715757044699,-176.482529,0.00024778,2]
[327056751,1715757044709,-176.482529,0.00024778,2]
[327056752,1715757044719,-151.0,0.00024778,2]
[327056753,1715757044729,-623.172642,0.00024778,2]
[327056754,1715757044738,-623.172642,0.00024778,2]
[327056755,1715757044748,-497.431148,0.00024778,2]
[327056756,1715757044758,-497.431148,0.00024778,2]
[327056757,1715757044767,-636.285914,0.00024778,2]
[327056758,1715757044776,-636.285914,0.00024778,2]
[327056759,1715757044786,-291.013856,0.00024784,2]
[327056760,1715757044795,-623.172642,0.00024784,2]
[327056761,1715757044805,-623.172642,0.00024784,2]
[327056762,1715757044815,-623.172642,0.00024784,2]
[327056763,1715757044824,-623.172652,0.00024784,2]
[327056764,1715757044834,-497.431148,0.00024784,2]
[327056765,1715757044844,-497.431148,0.00024784,2]
[327056766,1715757044853,-497.431148,0.00024784,2]
[327056767,1715757044863,-497.431148,0.00024784,2]
[327056768,1715757044873,-636.285914,0.00024784,2]
[327056769,1715757044883,-636.285914,0.00024784,2]
[327056770,1715757044892,-636.285914,0.00024784,2]
[327056771,1715757044902,-636.285914,0.00024784,2]
[327056772,1715757044912,-500.0,0.00024784,2]
[327056773,1715757044921,-852.10838513,0.00024785,2]
[327056774,1715757044931,-151.0,0.00024785,2]
[327056775,1715757044941,-151.0,0.00024785,2]
[327056776,1715757044950,-161.139079,0.00024785,2]
[327056777,1715757044960,-159.343491,0.00024785,2]
[327056778,1715757044970,-191.891486,0.00024785,2]
[327056779,1715757044979,-151.0,0.00024785,2]
[327056780,1715757044989,-151.0,0.00024785,2]
[327056781,1715757044999,-506.343063,0.00024785,2]
[327056782,1715757045008,-506.343063,0.00024785,2]
[327056783,1715757045017,-506.343063,0.00024785,2]
[327056784,1715757045027,-506.343063,0.00024785,2]
[327056785,1715757045036,-231.737692,0.00024785,2]
[327056786,1715757045046,-176.482529,0.00024785,2]
[327056787,1715757045056,-176.482529,0.00024785,2]
[327056788,1715757045065,-176.482529,0.00024785,2]
[327056789,1715757045075,-176.482527,0.00024785,2]
[327056790,1715757045085,-500.0,0.00024785,2]
[327056791,1715757045095,-151.0,0.00024786,2]
[327056792,1715757045104,-151.0,0.00024786,2]
[327056793,1715757045113,-151.0,0.00024786,2]
[327056794,1715757045123,-506.343063,0.00024786,2]
[327056795,1715757045133,-506.343063,0.00024786,2]
[327056796,1715757045143,-500.0,0.00024786,2]
[327056797,1715757045152,-500.0,0.00024786,2]
[327056798,1715757045162,-500.0,0.00024786,2]
[327056799,1715757045172,-29459.03799464,0.00024787,3]
[327056803,1715757450440,1682.85215345,0.00015,2]
[327056804,1715757597619,817.80441059,9.999e-05,2]
[327056805,1715757615821,2094.84901879,0.00015,2]
[327056806,1715757715526,154.81815823,0.00015,2]
[327056856,1715758234514,-2113.61592946,0.00019168,2]
[327056858,1715758234525,-528.76307526,0.00019169,2]
[327056860,1715758234535,-177.103887,0.00019178,2]
[327056862,1715758234544,-216.430305,0.00019659,2]
[327056864,1715758234554,-11250.62388138,0.00020903,2]
[327056866,1715758234564,-150.0,0.00021641,2]
[327056868,1715758234573,-150.0,0.00021643,2]
[327056870,1715758234583,-150.0,0.00022166,2]
[327056872,1715758234592,-150.0,0.00022689,2]
[327056874,1715758234603,-150.0,0.00023212,2]
[327056876,1715758234613,-150.0,0.00023735,3]
[327056878,1715758234622,-213.40503989,0.00024,2]
[327056879,1715758234632,-1236.80017075,0.00024,2]
[327056880,1715758234642,-150.0,0.00024258,3]
[327056881,1715758234651,-180.22791367,0.00024426,2]
[327056882,1715758234660,-2744.93316216,0.00024466,2]
[327056883,1715758234670,-9243.72929306,0.00024486,2]
[327056884,1715758234679,-16725.62046981,0.00024526,2]
[327056885,1715758234690,-416.7728428,0.00024526,2]
[327056886,1715758234699,-186.32535926,0.00024538,2]
[327056887,1715758234709,-12.8145187,0.00024599,2]
[327056888,1715758234721,-487.1854813,0.00024599,2]
[327056889,1715758234730,-166.00430465,0.00024599,2]
[327056890,1715758234740,-500.0,0.00024599,2]
[327056891,1715758234750,-500.0,0.00024599,2]
[327056892,1715758234760,-500.0,0.00024599,2]
[327056893,1715758234769,-500.0,0.00024599,2]
[327056894,1715758234779,-500.0,0.00024599,2]
[327056895,1715758234788,-405.18643544,0.00024599,2]
[327056896,1715758234798,-613.5827426,0.00024599,2]
[327056897,1715758234807,-500.0,0.00024599,2]
[327056898,1715758234817,-211.68738171,0.00024599,2]
[327056899,1715758234827,-288.43995027,0.000246,2]
[327056900,1715758234837,-10659.22414152,0.000246,2]
[327057064,1715758246039,-6000.0,0.00024,2]
[327057065,1715758246048,-1099.78999998,0.000246,2]
[327057103,1715758922094,8457.69,0.0002,10]
[327057111,1715759139123,-528.76307526,0.00019071,2]
[327057112,1715759139145,-189.49414795,0.00019072,2]
[327057113,1715759139167,-5406.47328623,0.00020913,2]
[327057114,1715759139189,-216.430305,0.00021634,2]
[327057115,1715759139210,-150.0,0.00021686,2]
[327057116,1715759139233,-150.0,0.00022205,2]
[327057117,1715759139254,-398.68964126,0.000225,2]
[327057118,1715759139277,-150.0,0.00022724,2]
[327057119,1715759139298,-150.5659868,0.00024188,2]
[327057120,1715759139319,-416.7728428,0.0002419,2]
[327057121,1715759139340,-2744.93316216,0.00024332,2]
[327057122,1715759139361,-620.52157387,0.00024334,2]
[327057123,1715759139383,-8044.03835075,0.000246,2]
[327057124,1715759139404,-262.15305828,0.000246,2]
[327057125,1715759139425,-230.75196024,0.000246,2]
[327057126,1715759139448,-2000.0,0.000246,2]
[327057127,1715759139469,-253.96441225,0.000246,2]
[327057128,1715759139492,-230.75196021,0.00024675,2]
[327057129,1715759139515,-290.39808251,0.00024689,2]
[327057130,1715759139540,-347.76,0.00024689,3]
[327057131,1715759139564,-173.88,0.00024689,3]
[327057132,1715759139586,-521.66,0.0002469,3]
[327057133,1715759139609,-16360.66,0.0002469,3]
[327057134,1715759139634,-1342.40341974,0.00024698,2]
[327057135,1715759139655,-211.43262984,0.00024699,2]
[327057136,1715759139677,-251.24916742,0.00024699,2]
[327057137,1715759139700,-500.0,0.00024699,2]
[327057138,1715759139721,-563.66564987,0.00024699,2]
[327057139,1715759139741,-292.86850605,0.00024699,2]
[327057140,1715759139764,-500.0,0.00024699,2]
[327057141,1715759139788,-500.0,0.00024699,2]
[327057142,1715759139808,-483.1554,0.00024699,2]
[327057143,1715759139830,-500.0,0.00024699,2]
[327057144,1715759139851,-500.0,0.00024699,2]
[327057145,1715759139874,-306.85654093,0.00024699,2]
[327057146,1715759139896,-499.99999999,0.00024699,2]
[327057147,1715759139919,-1351.1552203,0.00024699,2]
[327057148,1715759139940,-500.0,0.00024699,2]
[327057149,1715759139961,-500.0,0.00024699,2]
[327057150,1715759139985,-500.0,0.00024699,2]
[327057151,1715759140007,-500.0,0.00024699,2]
[327057152,1715759140029,-500.0,0.00024699,2]
[327057153,1715759140052,-500.0,0.00024699,2]
[327057154,1715759140075,-500.0,0.00024699,2]
[327057155,1715759140097,-500.0,0.00024699,2]
[327057156,1715759140119,-44698.62244766,0.000247,3]
[327057157,1715759140145,-30780.73899485,0.000247,3]
[327057158,1715759140167,-501.91680878,0.000247,2]
[327057159,1715759231118,-396.70108316,0.00022756,2]
[327057160,1715759231138,-396.70108316,0.00023235,2]
[327057161,1715759231158,-396.70108316,0.00023487,2]
[327057162,1715759231178,-396.70108316,0.00023788,2]
[327057163,1715759231201,-396.70108316,0.00023973,2]
[327057164,1715759231222,-396.70108316,0.00024337,2]
[327057165,1715759231386,-3604.31552416,0.00024382,2]
[327057166,1715759231408,-396.70108316,0.00024508,2]
[327057167,1715759231428,-507.92882452,0.000246,2]
[327057168,1715759231451,-2000.0,0.000246,2]
[327057169,1715759231470,-173.88,0.0002469,3]
[327057170,1715759231489,-521.64,0.0002469,3]
[327057171,1715759231509,-6976.79,0.0002469,3]
[327057172,1715759231529,-4126.9678092,0.0002469,3]
[327057173,1715759238106,-153.0,0.00024055,2]
[327057174,1715759238135,-8344.1221908,0.0002469,3]
[327057175,1715759238165,-500.0,0.00024699,2]
[327057176,1715759238194,-500.0,0.00024699,2]
[327057177,1715759238223,-500.0,0.00024699,2]
[327057178,1715759238252,-593.02810751,0.00024699,2]
[327057179,1715759238282,-22349.31122383,0.000247,3]
[327057180,1715759238310,-222780.92700082,0.000247,2]
[327057181,1715759238340,-151.0,0.000247,2]
[327057182,1715759238363,-151.0,0.000247,2]
[327057183,1715759238385,-261.606997,0.000247,2]
[327057184,1715759238408,-151.0,0.000247,2]
[327057185,1715759238428,-303.805838,0.000247,2]
[327057186,1715759238700,-303.805838,0.000247,2]
[327057187,1715759238738,-151.0,0.000247,2]
[327057188,1715759238759,-151.0,0.000247,2]
[327057189,1715759238781,-153.0,0.000247,2]
[327057190,1715759238802,-204.2509034,0.00024712,2]
[327057191,1715759238823,-162.81842464,0.00024785,2]
[327057192,1715759238844,-204.2509034,0.00024795,2]
[327057193,1715759238864,-204.2509034,0.00024795,2]
[327057194,1715759238886,-284.74998966,0.00024796,2]
[327057195,1715759238907,-88888.0,0.000248,3]
[327057196,1715759238927,-151.0,0.000248,2]
[327057197,1715759238947,-151.0,0.000248,2]
[327057198,1715759238968,-303.805838,0.000248,2]
[327057199,1715759238989,-303.805838,0.000248,2]
[327057200,1715759239009,-244.41328,0.000248,2]
[327057201,1715759239029,-151.0,0.000248,2]
[327057202,1715759239050,-230.75196021,0.00024825,2]
[327057203,1715759239071,-432.56827635,0.00024896,2]
[327057204,1715759239092,-291.41986421,0.00024896,2]
[327057205,1715759239114,-273.08901938,0.00024896,2]
[327057206,1715759239134,-1045.78976568,0.00024898,2]
[327057207,1715759239154,-181.30092113,0.00024898,2]
[327057208,1715759239175,-1619.02483885,0.00024898,2]
[327057209,1715759239197,-580.34091974,0.00024898,2]
[327057210,1715759239218,-1119.34459102,0.00024898,2]
[327057211,1715759239239,-155.69190189,0.00024898,2]
[327057212,1715759239260,-820.05363545,0.00024898,2]
[327057213,1715759239280,-154.98906939,0.00024899,2]
[327057214,1715759239301,-281.0,0.000249,2]
[327057215,1715759239322,-206.09807024,0.000249,2]
[327057216,1715759245117,-3003.59627013,0.00024985,2]
[327057217,1715759245138,-204.2509034,0.00024986,2]
[327057218,1715759245160,-204.2509034,0.00024986,2]
[327057219,1715759245182,-204.2509034,0.00024986,2]
[327057220,1715759245203,-49667.27327307,0.0002499,2]
[327057221,1715759245222,-151.0,0.0002499,2]
[327057222,1715759245404,-151.0,0.0002499,2]
[327057223,1715759245427,-303.805838,0.0002499,2]
[327057224,1715759245450,-303.805838,0.0002499,2]
[327057225,1715759245472,-151.0,0.0002499,2]
[327057226,1715759245493,-10392.57,0.0002499,3]
[327057227,1715759245516,-154.9461019,0.00024997,2]
[327057228,1715759245540,-384.03539494,0.00024998,2]
[327057229,1715759245567,-2061.94791744,0.00024998,2]
[327057230,1715759245589,-280.92918891,0.00024998,2]
[327057231,1715759245615,-210.19073989,0.00024998,2]